fUST/lending_fUST_20250904
["ID","MTS","AMOUNT","RATE_DAILY","PERIOD"]
[383567054,1756992648355,-615.02,0.0001452,2]
[383567055,1756992648365,-480.0,0.0001452,2]
[383567056,1756992648375,-480.0,0.0001452,2]
[383567057,1756992648385,-480.0,0.0001452,2]
[383567058,1756992648394,-480.0,0.0001452,2]
[383567059,1756992648404,-480.0,0.0001452,2]
[383567060,1756992648416,-903.35,0.0001452,2]
[383567061,1756992648425,-480.0,0.0001452,2]
[383567062,1756992648435,-1000.26,0.0001452,2]
[383567063,1756992648446,-480.0,0.0001452,2]
[383567064,1756992648456,-480.0,0.0001452,2]
[383567065,1756992648466,-480.0,0.0001452,2]
[383567066,1756992648475,-480.0,0.0001452,2]
[383567067,1756992648485,-4127.38,0.0001452,2]
[383567068,1756992648495,-2235.57,0.0001452,2]
[383567069,1756992648505,-480.0,0.0001452,2]
[383567070,1756992648515,-480.0,0.0001452,2]
[383567071,1756992648524,-480.0,0.0001452,2]
[383567072,1756992648534,-480.0,0.0001452,2]
[383567073,1756992648543,-480.0,0.0001452,2]
[383567074,1756992648553,-671.01,0.0001452,2]
[383567075,1756992648562,-1209.52,0.0001452,2]
[383567076,1756992648572,-6219.34372925,0.00014554,2]
[383567077,1756992648825,-11572.96441505,0.00014554,2]
[383567078,1756992648835,-823.466942,0.00014554,2]
[383567079,1756992648844,-3711.2656693,0.00014554,2]
[383567080,1756992648854,-174.21,0.00014572,2]
[383567081,1756992648864,-153.0,0.00014603,2]
[383567082,1756992648873,-153.0,0.00014603,2]
[383567083,1756992648883,-153.0,0.00014603,2]
[383567084,1756992648893,-153.0,0.00014603,2]
[383567085,1756992648903,-336.351,0.00014674,2]
[383567086,1756992648914,-8000.0,0.00014792,2]
[383567087,1756992648923,-500.0,0.00014794,2]
[383567088,1756992648932,-480.0,0.00014794,2]
[383567089,1756992648942,-480.0,0.00014794,2]
[383567090,1756992648951,-193.26172938,0.00014794,2]
[383567091,1756992648961,-480.0,0.00014794,2]
[383567092,1756992648971,-480.0,0.00014794,2]
[383567093,1756992648981,-480.0,0.00014794,2]
[383567094,1756992648991,-151.0,0.00014794,2]
[383567095,1756992649005,-151.0,0.00014794,2]
[383567096,1756992649015,-167.09735349,0.00014794,2]
[383567097,1756992649024,-151.0,0.00014794,2]
[383567098,1756992649034,-498.58010752,0.00014794,2]
[383567099,1756992649045,-1994.32043008,0.00014794,2]
[383567100,1756992649055,-4487.22096769,0.00014794,2]
[383567101,1756992649064,-7969.30443862,0.00014794,2]
[383567102,1756992649075,-480.0,0.00014794,2]
[383567103,1756992649085,-480.0,0.00014794,2]
[383567104,1756992649097,-543.29,0.00014794,2]
[383567105,1756992649107,-814.86,0.00014794,2]
[383567106,1756992649116,-661.19,0.00014794,2]
[383567107,1756992649126,-639.67,0.00014794,2]
[383567108,1756992649136,-480.0,0.00014794,2]
[383567109,1756992649146,-224.43782424,0.00014794,2]
[383567110,1756992649156,-480.0,0.00014794,2]
[383567111,1756992649167,-480.0,0.00014794,2]
[383567112,1756992649177,-480.0,0.00014794,2]
[383567113,1756992649187,-480.0,0.00014794,2]
[383567114,1756992649198,-727.93,0.00014794,2]
[383567115,1756992649209,-480.0,0.00014794,2]
[383567116,1756992649219,-480.0,0.00014794,2]
[383567117,1756992649229,-480.0,0.00014794,2]
[383567118,1756992649238,-480.0,0.00014794,2]
[383567119,1756992649248,-480.0,0.00014794,2]
[383567120,1756992649258,-259.43731409,0.00014794,2]
[383567121,1756992649267,-556.22,0.00014794,2]
[383567122,1756992649278,-499.97,0.00014794,2]
[383567123,1756992649288,-480.0,0.00014794,2]
[383567124,1756992649298,-480.0,0.00014794,2]
[383567125,1756992649308,-480.0,0.00014794,2]
[383567126,1756992649318,-480.0,0.00014794,2]
[383567127,1756992649328,-480.0,0.00014794,2]
[383567128,1756992649338,-480.0,0.00014794,2]
[383567129,1756992649348,-480.0,0.00014794,2]
[383567130,1756992649358,-506.22,0.00014794,2]
[383567131,1756992649367,-259.68133423,0.00014794,2]
[383567132,1756992649408,-220.31866577,0.00014794,2]
[383567133,1756992649419,-480.0,0.00014794,2]
[383567134,1756992649429,-419.17194041,0.00014794,2]
[383567137,1756992805005,10000.0,0.00027397,120]
[383567141,1756993047897,381.9697962,0.00027397,120]
[383567167,1756993831895,-1004.7691919,0.00013596,2]
[383567173,1756993831953,-1026.02955528,0.00013596,2]
[383567174,1756993831963,-2343.93505252,0.00013598,2]
[383567176,1756993831972,-152.07098332,0.00013598,2]
[383567179,1756993831982,-1200.0,0.00013693,2]
[383567182,1756993831991,-300.0,0.00013694,2]
[383567185,1756993832001,-300.0,0.00013694,2]
[383567188,1756993832011,-300.0,0.00013694,2]
[383567192,1756993832020,-300.0,0.00013694,2]
[383567194,1756993832030,-1200.0,0.00013695,2]
[383567197,1756993832039,-998.40255591,0.00013696,2]
[383567199,1756993832049,-34850.89291974,0.00013696,2]
[383567215,1756993837761,-15149.10708026,0.00013696,2]
[383567216,1756993837770,-500.0,0.00013696,2]
[383567217,1756993837780,-194.03830153,0.00013696,2]
[383567218,1756993837789,-500.0,0.00013696,2]
[383567219,1756993837798,-500.0,0.00013696,2]
[383567220,1756993837808,-500.0,0.00013696,2]
[383567221,1756993837818,-500.0,0.00013696,2]
[383567222,1756993837827,-500.0,0.00013696,2]
[383567223,1756993837837,-177.36273402,0.00013696,2]
[383567224,1756993837846,-500.0,0.00013696,2]
[383567225,1756993837855,-500.0,0.00013696,2]
[383567226,1756993837864,-500.0,0.00013696,2]
[383567227,1756993837874,-500.0,0.00013696,2]
[383567228,1756993837883,-500.0,0.00013696,2]
[383567229,1756993837893,-500.0,0.00013696,2]
[383567230,1756993837902,-500.0,0.00013696,2]
[383567231,1756993837912,-500.0,0.00013696,2]
[383567232,1756993837921,-500.0,0.00013696,2]
[383567233,1756993837932,-159.54188643,0.00013696,2]
[383567234,1756993837942,-500.0,0.00013696,2]
[383567235,1756993837951,-500.0,0.00013696,2]
[383567236,1756993837960,-500.0,0.00013696,2]
[383567237,1756993837969,-250.64117547,0.00013696,2]
[383567238,1756993837979,-500.0,0.00013696,2]
[383567239,1756993837988,-500.0,0.00013696,2]
[383567240,1756993837998,-500.0,0.00013696,2]
[383567241,1756993838007,-500.0,0.00013696,2]
[383567242,1756993838017,-541094.09883571,0.00013697,2]
[383567243,1756993838028,-344.27777,0.00013697,2]
[383567244,1756993838046,-1082.3,0.00013697,2]
[383567282,1756993843014,-51799.81478311,0.00013697,2]
[383567284,1756993843028,-558.63495265,0.00013697,2]
[383567286,1756993843039,-417.2165,0.00013697,2]
[383567365,1756994763086,300.0,0.00013594,2]
[383567370,1756994823051,300.0,0.00013594,2]
[383567371,1756994901860,10000.0,0.00025,30]
[383567372,1756994930994,2050.93,0.00025,30]
[383567373,1756994943091,300.0,0.00013594,2]
[383567374,1756994954699,1501.90311718,0.0002965,60]
[383567556,1756995037263,-455.1587914,0.00013595,2]
[383567557,1756995037275,-744.8412086,0.00013595,2]
[383567558,1756995037284,-362.55907732,0.00013596,2]
[383567559,1756995037323,-137.44092268,0.00013596,2]
[383567560,1756995037333,-500.0,0.00013596,2]
[383567561,1756995037342,-500.0,0.00013596,2]
[383567562,1756995037355,-300.0,0.00013596,2]
[383567563,1756995037364,-300.0,0.00013596,2]
[383567564,1756995037374,-300.0,0.00013596,2]
[383567565,1756995037383,-300.0,0.00013596,2]
[383567566,1756995037394,-300.0,0.00013596,2]
[383567567,1756995037403,-858.50788288,0.00013597,2]
[383567569,1756995037414,-853.05119445,0.00013598,2]
[383567600,1756995038033,-20259.83131355,0.00013598,2]
[383567601,1756995038043,-1562.62336834,0.00013598,2]
[383567602,1756995038052,-581.05966095,0.00013598,2]
[383567603,1756995038062,-27297.92349064,0.00013598,2]
[383567604,1756995038093,-2129.31713282,0.00013598,2]
[383567605,1756995038105,-2209.8278872,0.00013598,2]
[383567606,1756995038116,-18362.93148934,0.00013598,2]
[383567607,1756995038125,-90739.62534386,0.00013697,2]
[383567608,1756995038136,-82442.54731567,0.00013697,2]
[383567609,1756995038146,-327.0,0.00013697,2]
[383567610,1756995038154,-327.0,0.00013697,2]
[383567611,1756995038164,-327.0,0.00013697,2]
[383567612,1756995038173,-327.0,0.00013697,2]
[383567613,1756995038183,-327.0,0.00013697,2]
[383567614,1756995038193,-327.0,0.00013697,2]
[383567615,1756995038203,-327.0,0.00013697,2]
[383567616,1756995038213,-327.0,0.00013697,2]
[383567617,1756995038224,-327.0,0.00013697,2]
[383567618,1756995038234,-327.0,0.00013697,2]
[383567619,1756995038243,-327.0,0.00013697,2]
[383567620,1756995038253,-352.97768644,0.00013697,2]
[383567621,1756995038263,-327.0,0.00013697,2]
[383567622,1756995038272,-327.0,0.00013697,2]
[383567623,1756995038282,-327.0,0.00013697,2]
[383567624,1756995038291,-327.0,0.00013697,2]
[383567625,1756995038301,-1643.21521689,0.00013697,2]
[383567638,1756995040324,-56.78478311,0.00013697,2]
[383567639,1756995040334,-1700.0,0.00013697,2]
[383567640,1756995040343,-1484.10416733,0.00013697,2]
[383567641,1756995040353,-1700.0,0.00013697,2]
[383567642,1756995040364,-1700.0,0.00013697,2]
[383567643,1756995040374,-1700.0,0.00013697,2]
[383567644,1756995040384,-1700.0,0.00013697,2]
[383567645,1756995040393,-1700.0,0.00013697,2]
[383567646,1756995040403,-1700.0,0.00013697,2]
[383567647,1756995040413,-500.0,0.00013698,2]
[383567648,1756995040422,-378.14187681,0.00013698,2]
[383567649,1756995040431,-480.0,0.00013698,2]
[383567650,1756995040443,-480.0,0.00013698,2]
[383567651,1756995040452,-480.0,0.00013698,2]
[383567652,1756995040462,-350.36287307,0.00013698,2]
[383567653,1756995040471,-480.0,0.00013698,2]
[383567654,1756995040485,-480.0,0.00013698,2]
[383567655,1756995040494,-480.0,0.00013698,2]
[383567656,1756995040503,-480.0,0.00013698,2]
[383567657,1756995040512,-480.0,0.00013698,2]
[383567658,1756995040522,-480.0,0.00013698,2]
[383567659,1756995040531,-480.0,0.00013698,2]
[383567660,1756995040541,-480.0,0.00013698,2]
[383567661,1756995040551,-481.17292672,0.00013698,2]
[383567662,1756995040560,-480.0,0.00013698,2]
[383567663,1756995040569,-151.0,0.00013698,2]
[383567664,1756995040579,-153.83075818,0.00013698,2]
[383567665,1756995040588,-480.0,0.00013698,2]
[383567666,1756995040598,-480.0,0.00013698,2]
[383567667,1756995040608,-480.0,0.00013698,2]
[383567668,1756995040617,-480.0,0.00013698,2]
[383567669,1756995040626,-521.28,0.00013698,2]
[383567670,1756995040636,-524.08,0.00013698,2]
[383567671,1756995040646,-540.53979437,0.00013698,2]
[383567672,1756995040656,-480.0,0.00013698,2]
[383567673,1756995040665,-480.0,0.00013698,2]
[383567674,1756995040674,-480.0,0.00013698,2]
[383567675,1756995040684,-480.0,0.00013698,2]
[383567676,1756995040693,-480.0,0.00013698,2]
[383567677,1756995040703,-480.0,0.00013698,2]
[383567678,1756995040713,-255.152554,0.00013698,2]
[383567679,1756995040725,-480.0,0.00013698,2]
[383567680,1756995040734,-480.0,0.00013698,2]
[383567681,1756995040743,-483.25331655,0.00013698,2]
[383567682,1756995040752,-480.0,0.00013698,2]
[383567683,1756995040762,-480.0,0.00013698,2]
[383567684,1756995040771,-481.29,0.00013698,2]
[383567685,1756995040780,-480.0,0.00013698,2]
[383567686,1756995040789,-480.0,0.00013698,2]
[383567687,1756995040799,-572.28,0.00013698,2]
[383567688,1756995040808,-480.0,0.00013698,2]
[383567689,1756995040817,-517.75,0.00013698,2]
[383567690,1756995040827,-480.0,0.00013698,2]
[383567691,1756995040836,-480.0,0.00013698,2]
[383567692,1756995040845,-480.0,0.00013698,2]
[383567693,1756995040855,-480.0,0.00013698,2]
[383567694,1756995040864,-480.0,0.00013698,2]
[383567695,1756995040873,-480.0,0.00013698,2]
[383567696,1756995040883,-480.0,0.00013698,2]
[383567697,1756995040893,-481.51570582,0.00013698,2]
[383567698,1756995040902,-480.0,0.00013698,2]
[383567699,1756995040912,-1000.0,0.00013698,2]
[383567700,1756995040922,-480.0,0.00013698,2]
[383567701,1756995040931,-480.0,0.00013698,2]
[383567702,1756995040940,-514.59,0.00013698,2]
[383567703,1756995040950,-480.0,0.00013698,2]
[383567704,1756995040959,-481.33495109,0.00013698,2]
[383567705,1756995040969,-480.0,0.00013698,2]
[383567706,1756995040980,-425.08750513,0.00013698,2]
[383567707,1756995040989,-480.0,0.00013698,2]
[383567708,1756995040999,-480.0,0.00013698,2]
[383567709,1756995041008,-480.0,0.00013698,2]
[383567710,1756995041018,-480.0,0.00013698,2]
[383567711,1756995041027,-480.0,0.00013698,2]
[383567712,1756995041037,-480.0,0.00013698,2]
[383567713,1756995041047,-480.0,0.00013698,2]
[383567714,1756995041056,-480.0,0.00013698,2]
[383567715,1756995041066,-480.0,0.00013698,2]
[383567716,1756995041075,-480.0,0.00013698,2]
[383567717,1756995041085,-486.39,0.00013698,2]
[383567718,1756995041094,-480.0,0.00013698,2]
[383567719,1756995041103,-480.0,0.00013698,2]
[383567720,1756995041113,-480.0,0.00013698,2]
[383567721,1756995041122,-480.0,0.00013698,2]
[383567722,1756995041132,-500.73,0.00013698,2]
[383567723,1756995041141,-480.0,0.00013698,2]
[383567724,1756995041150,-480.0,0.00013698,2]
[383567725,1756995041159,-480.0,0.00013698,2]
[383567726,1756995041169,-480.0,0.00013698,2]
[383567727,1756995041178,-480.0,0.00013698,2]
[383567728,1756995041187,-480.0,0.00013698,2]
[383567729,1756995041198,-480.0,0.00013698,2]
[383567730,1756995041207,-480.0,0.00013698,2]
[383567731,1756995041217,-480.0,0.00013698,2]
[383567732,1756995041230,-480.0,0.00013698,2]
[383567733,1756995041239,-480.0,0.00013698,2]
[383567734,1756995041249,-435.41723962,0.00013698,2]
[383567735,1756995041266,-45.95588975,0.00013698,2]
[383567736,1756995041277,-484.64387556,0.00013698,2]
[383567737,1756995041286,-212.06712373,0.00013698,2]
[383567848,1756995046386,-267.93287627,0.00013698,2]
[383567850,1756995046397,-480.0,0.00013698,2]
[383567852,1756995046406,-480.0,0.00013698,2]
[383567854,1756995046415,-480.0,0.00013698,2]
[383567856,1756995046426,-480.0,0.00013698,2]
[383567859,1756995046436,-481.19532937,0.00013698,2]
[383567861,1756995046446,-625.51,0.00013698,2]
[383567863,1756995046455,-481.01038569,0.00013698,2]
[383567865,1756995046465,-480.0,0.00013698,2]
[383567867,1756995046477,-480.0,0.00013698,2]
[383567869,1756995046486,-480.0,0.00013698,2]
[383567871,1756995046495,-480.0,0.00013698,2]
[383567873,1756995046505,-480.0,0.00013698,2]
[383567874,1756995046514,-480.0,0.00013698,2]
[383567876,1756995046524,-480.0,0.00013698,2]
[383567878,1756995046533,-480.0,0.00013698,2]
[383567880,1756995046543,-603.54817478,0.00013698,2]
[383567883,1756995046553,-440.80323391,0.00013698,2]
[383567885,1756995046571,-39.19676609,0.00013698,2]
[383567887,1756995046581,-480.0,0.00013698,2]
[383567889,1756995046591,-480.0,0.00013698,2]
[383567891,1756995046601,-480.0,0.00013698,2]
[383567893,1756995046611,-480.0,0.00013698,2]
[383567895,1756995046620,-480.0,0.00013698,2]
[383567897,1756995046629,-2335.39,0.00013698,2]
[383567899,1756995046639,-480.0,0.00013698,2]
[383567902,1756995046649,-513.23,0.00013698,2]
[383567903,1756995046659,-480.0,0.00013698,2]
[383567906,1756995046669,-480.0,0.00013698,2]
[383567908,1756995046679,-480.0,0.00013698,2]
[383567910,1756995046688,-480.0,0.00013698,2]
[383567912,1756995046697,-480.0,0.00013698,2]
[383567914,1756995046706,-480.0,0.00013698,2]
[383567916,1756995046716,-480.0,0.00013698,2]
[383567918,1756995046727,-480.0,0.00013698,2]
[383567920,1756995046736,-480.0,0.00013698,2]
[383567922,1756995046745,-480.0,0.00013698,2]
[383567924,1756995046754,-480.0,0.00013698,2]
[383567925,1756995046763,-480.0,0.00013698,2]
[383567927,1756995046772,-480.0,0.00013698,2]
[383567929,1756995046782,-480.0,0.00013698,2]
[383567932,1756995046791,-480.0,0.00013698,2]
[383567934,1756995046800,-480.0,0.00013698,2]
[383567936,1756995046810,-598.65,0.00013698,2]
[383567938,1756995046819,-480.95599647,0.00013698,2]
[383567939,1756995046828,-480.0,0.00013698,2]
[383567942,1756995046838,-480.0,0.00013698,2]
[383567944,1756995046847,-480.0,0.00013698,2]
[383567946,1756995046857,-270.60387828,0.00013698,2]
[383567948,1756995046866,-480.0,0.00013698,2]
[383567950,1756995046876,-480.0,0.00013698,2]
[383567952,1756995046886,-480.0,0.00013698,2]
[383567954,1756995046895,-480.0,0.00013698,2]
[383567956,1756995046905,-480.0,0.00013698,2]
[383567958,1756995046914,-480.0,0.00013698,2]
[383567960,1756995046923,-480.0,0.00013698,2]
[383567962,1756995046931,-480.0,0.00013698,2]
[383567964,1756995046941,-480.0,0.00013698,2]
[383567966,1756995046950,-480.0,0.00013698,2]
[383567968,1756995046959,-480.0,0.00013698,2]
[383567970,1756995046968,-507.97335916,0.00013698,2]
[383567996,1756995466120,188.11585774,0.00029639,60]
[383568023,1756995878201,27088.14034904,2.4e-05,30]
[383568024,1756995886128,10567.6827771,0.00019,30]
[383568025,1756995912054,500.0,0.00013209,2]
[383568028,1756995917078,500.0,0.00013102,2]
[383568049,1756996166029,527.81,0.00012329,2]
[383568050,1756996186905,806.38,0.00012329,2]
[383568051,1756996197388,305.45,0.00012329,2]
[383568052,1756996218078,466.66,0.00012329,2]
[383568053,1756996228779,212.12,0.00012329,2]
[383568100,1756996232366,-666.0,0.00013597,2]
[383568109,1756996232454,-85.19439752,0.00013597,2]
[383568110,1756996232464,-187.16428715,0.00013598,2]
[383568111,1756996232474,-1146.33654764,0.00013598,2]
[383568112,1756996232483,-300.0,0.00013696,2]
[383568113,1756996232493,-1200.0,0.00013696,2]
[383568114,1756996232503,-50000.0,0.00013697,2]
[383568116,1756996232512,-500.0,0.00013697,2]
[383568117,1756996232521,-500.0,0.00013697,2]
[383568118,1756996232530,-335.82681107,0.00013697,2]
[383568119,1756996232539,-500.0,0.00013697,2]
[383568120,1756996232548,-500.0,0.00013697,2]
[383568121,1756996232557,-500.0,0.00013697,2]
[383568122,1756996232566,-500.0,0.00013697,2]
[383568123,1756996232575,-500.0,0.00013697,2]
[383568124,1756996232584,-500.0,0.00013697,2]
[383568125,1756996232593,-500.0,0.00013697,2]
[383568126,1756996232604,-500.0,0.00013697,2]
[383568127,1756996232615,-500.0,0.00013697,2]
[383568128,1756996232624,-500.0,0.00013697,2]
[383568129,1756996232633,-317.24617414,0.00013697,2]
[383568130,1756996232642,-480.0,0.00013698,2]
[383568131,1756996232651,-480.0,0.00013698,2]
[383568132,1756996232661,-1315.7015246,0.00013698,2]
[383568133,1756996232670,-200.0,0.00013698,2]
[383568134,1756996232679,-418.55379844,0.00013698,2]
[383568135,1756996232688,-480.0,0.00013698,2]
[383568136,1756996232698,-480.0,0.00013698,2]
[383568137,1756996232707,-483.6442955,0.00013698,2]
[383568138,1756996232715,-480.0,0.00013698,2]
[383568139,1756996232724,-480.0,0.00013698,2]
[383568140,1756996232733,-480.0,0.00013698,2]
[383568141,1756996232743,-480.0,0.00013698,2]
[383568142,1756996232752,-480.0,0.00013698,2]
[383568143,1756996232761,-480.0,0.00013698,2]
[383568144,1756996232771,-480.0,0.00013698,2]
[383568145,1756996232780,-581.43,0.00013698,2]
[383568146,1756996232790,-480.0,0.00013698,2]
[383568147,1756996232799,-480.0,0.00013698,2]
[383568148,1756996232809,-480.0,0.00013698,2]
[383568149,1756996232818,-480.0,0.00013698,2]
[383568150,1756996232828,-151.0,0.00013698,2]
[383568151,1756996232837,-377.96751091,0.00013698,2]
[383568152,1756996232846,-480.0,0.00013698,2]
[383568153,1756996232856,-480.0,0.00013698,2]
[383568154,1756996232865,-480.0,0.00013698,2]
[383568155,1756996232878,-474.17441139,0.00013698,2]
[383568156,1756996232888,-203.88298268,0.00013698,2]
[383568157,1756996232897,-480.0,0.00013698,2]
[383568158,1756996232906,-480.0,0.00013698,2]
[383568159,1756996232916,-480.0,0.00013698,2]
[383568160,1756996232925,-480.0,0.00013698,2]
[383568161,1756996232934,-480.0,0.00013698,2]
[383568162,1756996232944,-480.0,0.00013698,2]
[383568163,1756996232953,-480.0,0.00013698,2]
[383568164,1756996232964,-480.0,0.00013698,2]
[383568165,1756996232973,-480.0,0.00013698,2]
[383568166,1756996232982,-480.0,0.00013698,2]
[383568167,1756996232991,-418.43470895,0.00013698,2]
[383568168,1756996233001,-480.0,0.00013698,2]
[383568169,1756996233011,-480.0,0.00013698,2]
[383568170,1756996233022,-480.0,0.00013698,2]
[383568171,1756996233031,-456.21474337,0.00013698,2]
[383568172,1756996233041,-480.0,0.00013698,2]
[383568173,1756996233050,-480.0,0.00013698,2]
[383568174,1756996233059,-480.0,0.00013698,2]
[383568175,1756996233069,-480.0,0.00013698,2]
[383568176,1756996233078,-480.0,0.00013698,2]
[383568177,1756996233087,-151.0,0.00013698,2]
[383568178,1756996233097,-480.0,0.00013698,2]
[383568179,1756996233106,-480.0,0.00013698,2]
[383568180,1756996233117,-480.0,0.00013698,2]
[383568181,1756996233126,-480.0,0.00013698,2]
[383568182,1756996233136,-530.78323128,0.00013698,2]
[383568183,1756996233145,-480.0,0.00013698,2]
[383568184,1756996233155,-480.0,0.00013698,2]
[383568185,1756996233164,-480.0,0.00013698,2]
[383568186,1756996233173,-480.0,0.00013698,2]
[383568187,1756996233183,-480.0,0.00013698,2]
[383568188,1756996233192,-828.0953032,0.00013698,2]
[383568189,1756996233202,-480.0,0.00013698,2]
[383568190,1756996233212,-480.0,0.00013698,2]
[383568191,1756996233222,-480.0,0.00013698,2]
[383568192,1756996233235,-480.0,0.00013698,2]
[383568193,1756996233245,-480.0,0.00013698,2]
[383568194,1756996233254,-151.0,0.00013698,2]
[383568195,1756996233264,-480.0,0.00013698,2]
[383568196,1756996233273,-480.0,0.00013698,2]
[383568197,1756996233284,-480.0,0.00013698,2]
[383568198,1756996233298,-480.0,0.00013698,2]
[383568199,1756996233313,-306.63743339,0.00013698,2]
[383568200,1756996233328,-184.7730376,0.00013698,2]
[383568201,1756996233339,-480.0,0.00013698,2]
[383568202,1756996233353,-480.0,0.00013698,2]
[383568203,1756996233367,-480.0,0.00013698,2]
[383568204,1756996233381,-500.0,0.00013698,2]
[383568205,1756996233395,-500.0,0.00013698,2]
[383568206,1756996233408,-500.0,0.00013698,2]
[383568207,1756996233424,-419.94111883,0.00013698,2]
[383568208,1756996233437,-480.0,0.00013698,2]
[383568209,1756996233449,-566.98141208,0.00013698,2]
[383568210,1756996233467,-480.0,0.00013698,2]
[383568211,1756996233479,-549.81,0.00013698,2]
[383568212,1756996233494,-469.03,0.00013698,2]
[383568213,1756996233506,-480.0,0.00013698,2]
[383568214,1756996233519,-605.84,0.00013698,2]
[383568215,1756996233529,-480.0,0.00013698,2]
[383568216,1756996233542,-480.0,0.00013698,2]
[383568217,1756996233555,-480.0,0.00013698,2]
[383568218,1756996233569,-575.16,0.00013698,2]
[383568219,1756996233583,-2474.92,0.00013698,2]
[383568220,1756996233597,-480.0,0.00013698,2]
[383568221,1756996233611,-480.0,0.00013698,2]
[383568222,1756996233626,-480.0,0.00013698,2]
[383568223,1756996233638,-480.0,0.00013698,2]
[383568224,1756996233648,-480.0,0.00013698,2]
[383568225,1756996233660,-480.0,0.00013698,2]
[383568226,1756996233673,-703.66,0.00013698,2]
[383568227,1756996233687,-480.0,0.00013698,2]
[383568228,1756996233701,-480.0,0.00013698,2]
[383568229,1756996233712,-243.8903917,0.00013698,2]
[383568230,1756996233725,-151.0,0.00013698,2]
[383568231,1756996233740,-151.0,0.00013698,2]
[383568232,1756996233752,-151.0,0.00013698,2]
[383568233,1756996233764,-612.43,0.00013698,2]
[383568234,1756996233776,-610.58,0.00013698,2]
[383568235,1756996233789,-480.0,0.00013698,2]
[383568236,1756996233803,-480.0,0.00013698,2]
[383568237,1756996233817,-480.0,0.00013698,2]
[383568238,1756996233830,-480.0,0.00013698,2]
[383568239,1756996233842,-480.0,0.00013698,2]
[383568240,1756996233854,-151.0,0.00013698,2]
[383568241,1756996233866,-480.0,0.00013698,2]
[383568242,1756996233882,-480.0,0.00013698,2]
[383568243,1756996233894,-693.64,0.00013698,2]
[383568244,1756996233905,-429.26510907,0.00013698,2]
[383568245,1756996233919,-480.0,0.00013698,2]
[383568246,1756996233931,-480.0,0.00013698,2]
[383568247,1756996233944,-480.0,0.00013698,2]
[383568248,1756996233956,-480.0,0.00013698,2]
[383568249,1756996233968,-480.0,0.00013698,2]
[383568250,1756996233982,-480.0,0.00013698,2]
[383568251,1756996234001,-480.0,0.00013698,2]
[383568252,1756996234013,-480.0,0.00013698,2]
[383568253,1756996234026,-480.0,0.00013698,2]
[383568254,1756996234038,-151.0,0.00013698,2]
[383568255,1756996234051,-1039.23,0.00013698,2]
[383568256,1756996234062,-480.0,0.00013698,2]
[383568257,1756996234075,-596.28,0.00013698,2]
[383568258,1756996234086,-515.04,0.00013698,2]
[383568259,1756996234099,-480.0,0.00013698,2]
[383568260,1756996234112,-173.13617814,0.00013698,2]
[383568261,1756996234124,-480.0,0.00013698,2]
[383568262,1756996234136,-480.0,0.00013698,2]
[383568263,1756996234149,-480.0,0.00013698,2]
[383568264,1756996234161,-480.0,0.00013698,2]